[Event "SixDays Budapest IM-A 10-2024"]
[Site "Budapest"]
[Date "2024.10.04"]
[Round "8.4"]
[White "Polyik, Peter"]
[Black "Chubakov, Sultan"]
[Result "1-0"]
[ECO "B41"]
[WhiteElo "2304"]
[BlackElo "2265"]
[Annotator "RC"]
[PlyCount "119"]
[EventDate "2024.09.24"]
[EventType "tourn"]
[EventCountry "HUN"]
[SourceTitle "playchess.com"]
[Source "ChessBase"]
[SourceQuality "1"]
[TimeControl "5400+30"]

1. e4 {[%emt 0:00:03]} c5 {[%emt 0:00:04]} 2. Nf3 {[%emt 0:00:07]} e6 {[%emt 0:00:05]} 3. d4 {[%emt 0:00:05]} cxd4 {[%emt 0:00:05]} 4. Nxd4 {[%emt 0:00:03]} a6 {[%emt 0:00:07]} 5. Be2 {[%emt 0:00:06]} Nf6 {[%emt 0:01:26]} 6. Nc3 {[%emt 0:00:08]} Qc7 {[%emt 0:00:13]} 7. Qd3 {[%emt 0:01:18]} Nc6 {[%emt 0:03:22]} 8. Nxc6 {[%emt 0:01:12]} bxc6 {[%emt 0:00:34]} 9. Qg3 {[%emt 0:00:25]} Qxg3 {[%emt 0:04:20]} 10. hxg3 {[%emt 0:00:05]} d5 {[%emt 0:09:14]} 11. g4 {[%emt 0:04:18]} Bb4 {[%emt 0:15:26]} 12. Bd2 {[%emt 0:02:32]} O-O {[%emt 0:01:44]} 13. f3 {[%emt 0:10:55]} a5 {[%emt 0:17:31]} 14. g5 {[%emt 0:11:06]} Nd7 {[%emt 0:00:21]} 15. exd5 {[%emt 0:06:58]} cxd5 {[%emt 0:02:34]} 16. Bd3 {[%emt 0:00:54]} g6 {[%emt 0:00:14]} 17. O-O-O {[%emt 0:09:13]} f6 {[%emt 0:04:55]} 18. gxf6 {[%emt 0:03:36]} Nxf6 {[%emt 0:02:12]} 19. Rde1 {[%emt 0:01:23]} Nh5 {[%emt 0:02:58]} 20. Ne2 {[%emt 0:10:39]} Bxd2+ {[%emt 0:01:15]} 21. Kxd2 {[%emt 0:00:04]} Nf4 {[%emt 0:00:39]} 22. Nxf4 {[%emt 0:00:37]} Rxf4 {[%emt 0:00:11]} 23. Re3 {[%emt 0:06:00]} Bd7 {[%emt 0:02:34]} 24. g3 {[%emt 0:00:27]} Rb4 {[%emt 0:04:51]} 25. b3 {[%emt 0:00:19]} Rb6 {[%emt 0:03:39]} 26. Re2 {[%emt 0:00:36]} Ra7 {[%emt 0:01:45]} 27. Reh2 {[%emt 0:00:23]} Be8 {[%emt 0:00:54]} 28. f4 {[%emt 0:00:34]} a4 {[%emt 0:03:11]} 29. Kc3 {[%emt 0:03:37]} h5 {[%emt 0:02:26]} 30. g4 {[%emt 0:02:26]} axb3 {[%emt 0:00:52]} 31. axb3 {[%emt 0:00:06]} Kf8 {[%emt 0:01:24]} 32. Kd4 {[%emt 0:04:00]} Ke7 {[%emt 0:03:53]} 33. Rg1 {[%emt 0:05:06]} Rb4+ {[%emt 0:02:51]} 34. Ke3 {[%emt 0:00:06]} Kf6 {[%emt 0:01:09]} 35. gxh5 {[%emt 0:02:43]} gxh5 {[%emt 0:00:07]} 36. Rhg2 {[%emt 0:00:10]} e5 {[%emt 0:01:35]} 37. fxe5+ {[%emt 0:00:31]} Kxe5 {[%emt 0:00:08]} 38. Kd2 {[%emt 0:02:37]} Kd6 {[%emt 0:03:30]} 39. Bg6 {[%emt 0:02:42]} Re7 {[%emt 0:00:34]} 40. Bd3 {[%emt 0:01:35]} Re5 {[%emt 0:01:35]} 41. Ra1 {[%emt 0:00:29]} Rb7 {[%emt 0:02:49]} 42. Ra6+ {[%emt 0:00:22]} Kc7 {[%emt 0:00:21]} 43. Rh6 {[%emt 0:00:43]} Kb8 {[%emt 0:00:44]} 44. Rg8 {[%emt 0:01:13]} Rbe7 {[%emt 0:00:13]} 45. Bb5 {[%emt 0:00:32]} Kc7 {[%emt 0:00:11]} 46. Bxe8 {[%emt 0:00:08]} Rxe8 {[%emt 0:00:12]} 47. Rxe8 {[%emt 0:00:08]} Rxe8 {[%emt 0:00:03]} 48. Rxh5 {[%emt 0:00:05]} Kc6 {[%emt 0:00:19]} 49. Kd3 {[%emt 0:00:55]} Rg8 {[%emt 0:00:21]} 50. Rh3 {[%emt 0:01:39]} Kc5 {[%emt 0:00:39]} 51. Kc3 {[%emt 0:00:06]} Rg4 {[%emt 0:00:26]} 52. Rd3 {[%emt 0:00:44]} Rg5 {[%emt 0:00:29]} 53. b4+ {[%emt 0:00:10]} Kc6 {[%emt 0:00:22]} 54. Kb3 {[%emt 0:00:08]} Rg1 {[%emt 0:01:26]} 55. Rc3+ {[%emt 0:00:07]} Kb6 {[%emt 0:01:32]} 56. Rh3 {[%emt 0:02:56]} Rg5 {[%emt 0:00:54]} 57. Rh6+ {[%emt 0:02:00]} Kb5 {[%emt 0:00:08]} 58. Rd6 {[%emt 0:00:20]} Rg3+ {[%emt 0:01:13]} 59. c3 {[%emt 0:00:07]} Rg5 {[%emt 0:00:07]} 60. Rxd5+ {[%emt 0:00:14]} 1-0

[Event "SixDays Budapest IM-A 10-2024"]
[Site "Budapest"]
[Date "2024.10.04"]
[Round "8.5"]
[White "Kwon, Sehyun"]
[Black "Li, Xueyi"]
[Result "1-0"]
[ECO "B12"]
[WhiteElo "2248"]
[BlackElo "2187"]
[Annotator "RC"]
[PlyCount "97"]
[EventDate "2024.09.24"]
[EventType "tourn"]
[EventCountry "HUN"]
[SourceTitle "playchess.com"]
[Source "ChessBase"]
[SourceQuality "1"]
[TimeControl "5400+30"]

1. e4 {[%emt 0:00:04]} c6 {[%emt 0:01:45]} 2. d4 {[%emt 0:00:36]} d5 {[%emt 0:00:05]} 3. e5 {[%emt 0:00:09]} Bf5 {[%emt 0:00:27]} 4. h4 {[%emt 0:00:21]} a6 {[%emt 0:00:27]} 5. h5 {[%emt 0:00:46]} h6 {[%emt 0:01:53]} 6. g4 {[%emt 0:01:26]} Bd7 {[%emt 0:00:11]} 7. f4 {[%emt 0:01:28]} c5 {[%emt 0:08:29]} 8. c3 {[%emt 0:06:12]} e6 {[%emt 0:10:38]} 9. Be3 {[%emt 0:07:43]} Qb6 {[%emt 0:02:22]} 10. Qd2 {[%emt 0:01:25]} Nc6 {[%emt 0:00:53]} 11. Nf3 {[%emt 0:01:04]} cxd4 {[%emt 0:07:35]} 12. cxd4 {[%emt 0:01:52]} Bb4 {[%emt 0:00:32]} 13. Nc3 {[%emt 0:00:29]} Na5 {[%emt 0:04:29]} 14. Bd3 {[%emt 0:05:51]} Bb5 {[%emt 0:04:42]} 15. O-O {[%emt 0:02:08]} Bxd3 {[%emt 0:01:03]} 16. Qxd3 {[%emt 0:00:09]} Nc4 {[%emt 0:00:51]} 17. Bc1 {[%emt 0:03:53]} Bxc3 {[%emt 0:05:15]} 18. Qxc3 {[%emt 0:02:05]} Ne7 {[%emt 0:00:19]} 19. b3 {[%emt 0:05:01]} Na5 {[%emt 0:01:56]} 20. Ba3 {[%emt 0:02:14]} Nac6 {[%emt 0:00:11]} 21. Bc5 {[%emt 0:02:59]} Qd8 {[%emt 0:01:32]} 22. Rf2 {[%emt 0:10:47]} Qd7 {[%emt 0:11:29]} 23. Qd3 {[%emt 0:04:48]} f5 {[%emt 0:06:10]} 24. exf6 {[%emt 0:04:21]} gxf6 {[%emt 0:00:03]} 25. Rg2 {[%emt 0:00:39]} O-O-O {[%emt 0:00:45]} 26. b4 {[%emt 0:05:48]} Kb8 {[%emt 0:01:42]} 27. a4 {[%emt 0:02:12]} Na7 {[%emt 0:05:25]} 28. b5 {[%emt 0:03:25]} a5 {[%emt 0:00:11]} 29. Qc3 {[%emt 0:03:17]} Nec8 {[%emt 0:01:04]} 30. Qxa5 {[%emt 0:00:55]} Rhg8 {[%emt 0:01:08]} 31. Nh4 {[%emt 0:05:11]} e5 {[%emt 0:01:46]} 32. f5 {[%emt 0:02:35]} exd4 {[%emt 0:01:04]} 33. Bxd4 {[%emt 0:01:37]} Qd6 {[%emt 0:00:38]} 34. Qc3 {[%emt 0:00:37]} Rgf8 {[%emt 0:05:21]} 35. Bc5 {[%emt 0:01:52]} Qc7 {[%emt 0:00:21]} 36. Qd4 {[%emt 0:00:24]} Rfe8 {[%emt 0:01:04]} 37. Bxa7+ {[%emt 0:03:02]} Nxa7 {[%emt 0:00:01]} 38. b6 {[%emt 0:00:07]} Qc6 {[%emt 0:00:08]} 39. bxa7+ {[%emt 0:00:07]} Ka8 {[%emt 0:00:02]} 40. a5 {[%emt 0:03:39]} Re4 {[%emt 0:01:17]} 41. Qb6 {[%emt 0:00:56]} Rd7 {[%emt 0:02:24]} 42. Qxc6 {[%emt 0:04:07]} bxc6 {[%emt 0:00:02]} 43. Rc1 {[%emt 0:00:31]} Rd6 {[%emt 0:03:47]} 44. Kh2 {[%emt 0:02:10]} d4 {[%emt 0:00:29]} 45. Nf3 {[%emt 0:00:22]} d3 {[%emt 0:00:31]} 46. Kg3 {[%emt 0:00:19]} Re3 {[%emt 0:02:23]} 47. Rd2 Kxa7 {[%emt 0:00:39]} 48. Rc3 {[%emt 0:01:03]} Ka6 {[%emt 0:02:00]} 49. Kf2 {[%emt 0:00:19]} 1-0

[Event "SixDays Budapest IM-A 10-2024"]
[Site "Budapest"]
[Date "2024.10.05"]
[Round "9.1"]
[White "Li, Xueyi"]
[Black "Valkova, Angelika"]
[Result "1-0"]
[ECO "D30"]
[WhiteElo "2187"]
[BlackElo "2068"]
[Annotator "RC"]
[PlyCount "69"]
[EventDate "2024.09.24"]
[EventType "tourn"]
[EventCountry "HUN"]
[SourceTitle "playchess.com"]
[Source "ChessBase"]
[SourceQuality "1"]
[TimeControl "5400+30"]

1. d4 {[%emt 0:00:06]} d5 {[%emt 0:00:26]} 2. c4 {[%emt 0:00:11]} e6 {[%emt 0:00:04]} 3. Nf3 {[%emt 0:00:04]} a6 {[%emt 0:00:05]} 4. cxd5 {[%emt 0:01:08]} exd5 {[%emt 0:00:06]} 5. Nc3 {[%emt 0:00:03]} Nf6 {[%emt 0:00:08]} 6. Bg5 {[%emt 0:00:48]} Be6 {[%emt 0:00:08]} 7. Qb3 {[%emt 0:00:54]} Nbd7 {[%emt 0:00:19]} 8. e3 {[%emt 0:02:33]} Bd6 {[%emt 0:02:48]} 9. Bd3 {[%emt 0:01:16]} O-O {[%emt 0:05:36]} 10. Qc2 {[%emt 0:00:36]} Qb8 {[%emt 0:01:18]} 11. O-O {[%emt 0:01:14]} c6 {[%emt 0:00:10]} 12. Bh4 {[%emt 0:03:46]} Bg4 {[%emt 0:08:14]} 13. Bg3 {[%emt 0:01:29]} Bxf3 {[%emt 0:02:35]} 14. gxf3 {[%emt 0:00:02]} c5 {[%emt 0:12:37]} 15. dxc5 {[%emt 0:01:18]} Nxc5 {[%emt 0:00:05]} 16. Rad1 {[%emt 0:00:50]} d4 {[%emt 0:02:09]} 17. exd4 {[%emt 0:03:24]} Nxd3 {[%emt 0:00:40]} 18. Qxd3 {[%emt 0:00:20]} Nh5 {[%emt 0:03:30]} 19. Ne4 {[%emt 0:01:57]} Nf4 {[%emt 0:01:27]} 20. Qd2 {[%emt 0:01:58]} Nh3+ {[%emt 0:00:09]} 21. Kg2 {[%emt 0:02:20]} Nf4+ {[%emt 0:02:12]} 22. Kh1 {[%emt 0:00:29]} Bc7 {[%emt 0:00:35]} 23. d5 {[%emt 0:03:47]} f5 {[%emt 0:02:54]} 24. d6 {[%emt 0:00:47]} fxe4 {[%emt 0:01:38]} 25. Bxf4 {[%emt 0:00:39]} Ba5 {[%emt 0:02:58]} 26. Qd5+ {[%emt 0:00:18]} Kh8 {[%emt 0:00:06]} 27. Bg3 {[%emt 0:00:21]} e3 {[%emt 0:02:02]} 28. fxe3 {[%emt 0:00:12]} b5 {[%emt 0:00:32]} 29. e4 {[%emt 0:00:24]} Qc8 {[%emt 0:00:36]} 30. Be5 {[%emt 0:01:33]} Bb6 {[%emt 0:00:50]} 31. Bxg7+ {[%emt 0:00:49]} Kxg7 {[%emt 0:00:05]} 32. Rg1+ {[%emt 0:00:05]} Bxg1 {[%emt 0:00:05]} 33. Rxg1+ {[%emt 0:00:02]} Kf6 {[%emt 0:00:18]} 34. Qg5+ {[%emt 0:00:08]} Kf7 {[%emt 0:00:07]} 35. Qe7# 1-0